[Event "Queens Festival Final-C 2022"]
[Site "Tornelo"]
[Date "2022.06.25"]
[Round "6.4"]
[White "Vicze, Zsofia"]
[Black "Davari, Sara"]
[Result "0-1"]
[ECO "C24"]
[WhiteElo "1749"]
[BlackElo "1674"]
[Annotator "NA RC"]
[PlyCount "116"]
[EventDate "2022.06.24"]
[EventType "tourn"]
[EventCountry "NET"]
[SourceTitle "playchess.com"]
[Source "ChessBase"]
[SourceQuality "1"]
[TimeControl "180+2"]

1. e4 {[%emt 0:00:02]} e5 {[%emt 0:00:04]} 2. Bc4 {[%emt 0:00:03]} Nf6 {[%emt 0:00:02]} 3. d3 {[%emt 0:00:01]} c6 {[%emt 0:00:02]} 4. f4 {[%emt 0:00:04]} exf4 {[%emt 0:00:10]} 5. Bxf4 {[%emt 0:00:04]} d5 {[%emt 0:00:07]} 6. exd5 {[%emt 0:00:02]} cxd5 {[%emt 0:00:01]} 7. Bb5+ {[%emt 0:00:02]} Nc6 {[%emt 0:00:02]} 8. Qe2+ {[%emt 0:00:06]} Be7 {[%emt 0:00:02]} 9. Nf3 {[%emt 0:00:02]} O-O {[%emt 0:00:11]} 10. Nc3 {[%emt 0:00:04]} d4 {[%emt 0:00:08]} 11. Ne4 {[%emt 0:00:10]} Qa5+ {[%emt 0:00:08]} 12. Nfd2 {[%emt 0:00:22]} Qxb5 {[%emt 0:00:03]} 13. O-O-O {[%emt 0:00:07]} Nxe4 {[%emt 0:00:21]} 14. Nxe4 {[%emt 0:00:04]} Be6 {[%emt 0:00:10]} 15. a3 {[%emt 0:00:11]} Qd5 {[%emt 0:00:10]} 16. Kd2 {[%emt 0:00:39]} Bf5 {[%emt 0:00:13]} 17. Ng3 {[%emt 0:00:07]} Bg6 {[%emt 0:00:11]} 18. h4 {[%emt 0:00:03]} h5 {[%emt 0:00:07]} 19. Rdf1 {[%emt 0:00:19]} Bd6 {[%emt 0:00:07]} 20. Bxd6 {[%emt 0:00:10]} Qxd6 {[%emt 0:00:01]} 21. Nxh5 {[%emt 0:00:03]} Bxh5 {[%emt 0:00:09]} 22. Qxh5 {[%emt 0:00:03]} Qh6+ {[%emt 0:00:03]} 23. Qxh6 {[%emt 0:00:06]} gxh6 {[%emt 0:00:00]} 24. Rf4 {[%emt 0:00:05]} Rae8 {[%emt 0:00:07]} 25. Rhf1 {[%emt 0:00:05]} Re6 {[%emt 0:00:05]} 26. h5 {[%emt 0:00:04]} f6 {[%emt 0:00:13]} 27. Rg4+ {[%emt 0:00:09]} Kf7 {[%emt 0:00:01]} 28. Rg6 {[%emt 0:00:02]} Rg8 {[%emt 0:00:04]} 29. Rxg8 {[%emt 0:00:04]} Kxg8 {[%emt 0:00:01]} 30. Rf3 {[%emt 0:00:01]} Kf7 {[%emt 0:00:07]} 31. Rg3 {[%emt 0:00:02]} Re5 {[%emt 0:00:05]} 32. Rh3 {[%emt 0:00:05]} Rg5 {[%emt 0:00:03]} 33. Rh2 {[%emt 0:00:03]} Ne5 {[%emt 0:00:04]} 34. c3 {[%emt 0:00:03]} Rg3 {[%emt 0:00:06]} 35. Rh3 {[%emt 0:00:13]} Rxh3 {[%emt 0:00:04]} 36. gxh3 {[%emt 0:00:02]} dxc3+ {[%emt 0:00:01]} 37. bxc3 {[%emt 0:00:01]} Nf3+ {[%emt 0:00:09]} 38. Ke3 {[%emt 0:00:02]} Ng5 {[%emt 0:00:01]} 39. h4 {[%emt 0:00:03]} Ne6 {[%emt 0:00:02]} 40. Ke4 {[%emt 0:00:03]} Nc5+ {[%emt 0:00:01]} 41. Ke3 {[%emt 0:00:04]} Ke6 {[%emt 0:00:02]} 42. d4 {[%emt 0:00:01]} Nd7 {[%emt 0:00:06]} 43. c4 {[%emt 0:00:02]} Nb6 {[%emt 0:00:02]} 44. c5 {[%emt 0:00:05]} Nd5+ {[%emt 0:00:02]} 45. Kd3 {[%emt 0:00:01]} f5 {[%emt 0:00:02]} 46. a4 {[%emt 0:00:03]} a5 {[%emt 0:00:06]} 47. Ke2 {[%emt 0:00:03]} Nf6 {[%emt 0:00:02]} 48. Kd3 {[%emt 0:00:01]} Kd5 {[%emt 0:00:01]} 49. Kc3 {[%emt 0:00:02]} Nxh5 {[%emt 0:00:02]} 50. Kd3 {[%emt 0:00:02]} Nf4+ {[%emt 0:00:01]} 51. Ke3 {[%emt 0:00:02]} Ne6 {[%emt 0:00:01]} 52. h5 {[%emt 0:00:02]} Nxd4 {[%emt 0:00:02]} 53. Kf4 {[%emt 0:00:01]} Kxc5 {[%emt 0:00:02]} 54. Ke5 {[%emt 0:00:02]} b6 {[%emt 0:00:02]} 55. Kf4 {[%emt 0:00:02]} Kd5 {[%emt 0:00:03]} 56. Ke3 {[%emt 0:00:03]} Ke5 {[%emt 0:00:02]} 57. Kd3 {[%emt 0:00:02]} f4 {[%emt 0:00:01]} 58. Kd2 {[%emt 0:00:02]} Ke4 {[%emt 0:00:01]} 0-1

[Event "Queens Festival Final-C 2022"]
[Site "Tornelo"]
[Date "2022.06.25"]
[Round "7.1"]
[White "Jimenez Salas, Maria Teresa"]
[Black "Castillo Beitia, Ashley Alexandra"]
[Result "0-1"]
[ECO "B38"]
[WhiteElo "1813"]
[BlackElo "1620"]
[Annotator "NA RC"]
[PlyCount "176"]
[EventDate "2022.06.24"]
[EventType "tourn"]
[EventCountry "NET"]
[SourceTitle "playchess.com"]
[Source "ChessBase"]
[SourceQuality "1"]
[TimeControl "180+2"]

1. e4 {[%emt 0:00:02]} c5 {[%emt 0:00:05]} 2. Nf3 {[%emt 0:00:02]} d6 {[%emt 0:00:02]} 3. d4 {[%emt 0:00:01]} cxd4 {[%emt 0:00:01]} 4. Nxd4 {[%emt 0:00:00]} Nf6 {[%emt 0:00:02]} 5. f3 {[%emt 0:00:01]} g6 {[%emt 0:00:01]} 6. c4 {[%emt 0:00:02]} Bg7 {[%emt 0:00:01]} 7. Nc3 {[%emt 0:00:02]} O-O {[%emt 0:00:02]} 8. Be3 {[%emt 0:00:02]} Nc6 {[%emt 0:00:01]} 9. Qd2 {[%emt 0:00:01]} Be6 {[%emt 0:00:04]} 10. Be2 {[%emt 0:00:08]} Nxd4 {[%emt 0:00:02]} 11. Bxd4 {[%emt 0:00:02]} Rc8 {[%emt 0:00:02]} 12. b3 {[%emt 0:00:05]} a6 {[%emt 0:00:04]} 13. Rc1 {[%emt 0:00:02]} Qa5 {[%emt 0:00:06]} 14. O-O {[%emt 0:00:03]} Nd7 {[%emt 0:00:06]} 15. Be3 {[%emt 0:00:02]} Rfe8 {[%emt 0:00:08]} 16. Rfd1 {[%emt 0:00:02]} Nc5 {[%emt 0:00:02]} 17. Nd5 {[%emt 0:00:11]} Qxd2 {[%emt 0:00:03]} 18. Rxd2 {[%emt 0:00:02]} f5 {[%emt 0:00:10]} 19. exf5 {[%emt 0:00:13]} Bxf5 {[%emt 0:00:03]} 20. Bg5 {[%emt 0:00:03]} Bf8 {[%emt 0:00:10]} 21. Bf1 {[%emt 0:00:41]} Ne6 {[%emt 0:00:05]} 22. Be3 {[%emt 0:00:03]} Ng7 {[%emt 0:00:05]} 23. Bd3 {[%emt 0:00:04]} Bxd3 {[%emt 0:00:04]} 24. Rxd3 {[%emt 0:00:00]} Nf5 {[%emt 0:00:01]} 25. Bf2 {[%emt 0:00:01]} Kf7 {[%emt 0:00:05]} 26. Rdc3 {[%emt 0:00:11]} Bg7 {[%emt 0:00:08]} 27. R3c2 {[%emt 0:00:01]} e6 {[%emt 0:00:02]} 28. Ne3 {[%emt 0:00:11]} Bh6 {[%emt 0:00:05]} 29. Re1 {[%emt 0:00:03]} d5 {[%emt 0:00:13]} 30. Nxf5 {[%emt 0:00:29]} exf5 {[%emt 0:00:03]} 31. Rxe8 {[%emt 0:00:03]} Kxe8 {[%emt 0:00:03]} 32. Re2+ {[%emt 0:00:02]} Kd7 {[%emt 0:00:03]} 33. cxd5 {[%emt 0:00:01]} Rc1+ {[%emt 0:00:05]} 34. Re1 {[%emt 0:00:01]} Rxe1+ {[%emt 0:00:03]} 35. Bxe1 {[%emt 0:00:00]} Kd6 {[%emt 0:00:02]} 36. Kf2 {[%emt 0:00:06]} Kxd5 {[%emt 0:00:01]} 37. Bc3 {[%emt 0:00:01]} b5 {[%emt 0:00:10]} 38. Ke2 {[%emt 0:00:01]} Bf8 {[%emt 0:00:05]} 39. Kd3 {[%emt 0:00:02]} Bd6 {[%emt 0:00:01]} 40. h3 {[%emt 0:00:03]} Bg3 {[%emt 0:00:03]} 41. Bf6 {[%emt 0:00:03]} Be5 {[%emt 0:00:03]} 42. Bg5 {[%emt 0:00:02]} Bg7 {[%emt 0:00:03]} 43. Bf4 {[%emt 0:00:03]} Kc5 {[%emt 0:00:04]} 44. Bd2 {[%emt 0:00:04]} Kd5 {[%emt 0:00:02]} 45. Bf4 {[%emt 0:00:05]} Bf8 {[%emt 0:00:05]} 46. Bc7 {[%emt 0:00:07]} Bc5 {[%emt 0:00:02]} 47. Bd8 {[%emt 0:00:04]} Bd6 {[%emt 0:00:05]} 48. Bf6 {[%emt 0:00:02]} Be5 {[%emt 0:00:02]} 49. Be7 {[%emt 0:00:18]} Bg7 {[%emt 0:00:04]} 50. Bh4 {[%emt 0:00:09]} Ke5 {[%emt 0:00:02]} 51. Bg3+ {[%emt 0:00:02]} Kd5 {[%emt 0:00:03]} 52. Bf2 {[%emt 0:00:01]} Be5 {[%emt 0:00:04]} 53. Be3 {[%emt 0:00:02]} Bd6 {[%emt 0:00:02]} 54. Bf2 {[%emt 0:00:03]} Bc5 {[%emt 0:00:05]} 55. Bg3 {[%emt 0:00:03]} Bd4 {[%emt 0:00:06]} 56. Bh4 {[%emt 0:00:06]} Be5 {[%emt 0:00:02]} 57. Bf2 {[%emt 0:00:02]} Bf4 {[%emt 0:00:04]} 58. Ba7 {[%emt 0:00:04]} Bg3 {[%emt 0:00:05]} 59. Bb6 {[%emt 0:00:07]} h6 {[%emt 0:00:06]} 60. Bd8 {[%emt 0:00:02]} g5 {[%emt 0:00:04]} 61. Bf6 {[%emt 0:00:03]} Bf4 {[%emt 0:00:05]} 62. Bg7 {[%emt 0:00:02]} h5 {[%emt 0:00:04]} 63. Bh6 {[%emt 0:00:02]} h4 {[%emt 0:00:09]} 64. Bf8 {[%emt 0:00:05]} Bd6 {[%emt 0:00:07]} 65. Bxd6 {[%emt 0:00:07]} Kxd6 {[%emt 0:00:02]} 66. Kd4 {[%emt 0:00:01]} a5 {[%emt 0:00:10]} 67. a3 {[%emt 0:00:02]} a4 {[%emt 0:00:14]} 68. bxa4 {[%emt 0:00:07]} bxa4 {[%emt 0:00:03]} 69. Kc4 {[%emt 0:00:02]} Ke5 {[%emt 0:00:01]} 70. Kb4 {[%emt 0:00:04]} Kf4 {[%emt 0:00:05]} 71. Kxa4 {[%emt 0:00:02]} Kg3 {[%emt 0:00:02]} 72. Kb3 {[%emt 0:00:03]} Kxg2 {[%emt 0:00:01]} 73. a4 {[%emt 0:00:01]} Kxh3 {[%emt 0:00:03]} 74. a5 {[%emt 0:00:01]} Kg3 {[%emt 0:00:02]} 75. a6 {[%emt 0:00:01]} h3 {[%emt 0:00:01]} 76. a7 {[%emt 0:00:01]} h2 {[%emt 0:00:02]} 77. a8=Q {[%emt 0:00:02]} h1=Q {[%emt 0:00:03]} 78. Qb8+ {[%emt 0:00:01]} f4 {[%emt 0:00:01]} 79. Qg8 {[%emt 0:00:04]} Qxf3+ {[%emt 0:00:02]} 80. Kc2 {[%emt 0:00:02]} g4 {[%emt 0:00:02]} 81. Kd2 {[%emt 0:00:03]} Kg2 {[%emt 0:00:03]} 82. Ke1 {[%emt 0:00:03]} g3 {[%emt 0:00:03]} 83. Qg5 {[%emt 0:00:05]} Qf2+ {[%emt 0:00:02]} 84. Kd1 {[%emt 0:00:01]} f3 {[%emt 0:00:02]} 85. Qg4 {[%emt 0:00:03]} Qe2+ {[%emt 0:00:03]} 86. Kc1 {[%emt 0:00:02]} Qe3+ {[%emt 0:00:03]} 87. Kd1 {[%emt 0:00:02]} f2 {[%emt 0:00:04]} 88. Kc2 {[%emt 0:00:05]} f1=Q {[%emt 0:00:07]} 0-1

[Event "Queens Festival Final-C 2022"]
[Site "Tornelo"]
[Date "2022.06.25"]
[Round "7.3"]
[White "Stadlinger, Lea"]
[Black "Vicze, Zsofia"]
[Result "1/2-1/2"]
[ECO "B56"]
[WhiteElo "1723"]
[BlackElo "1749"]
[Annotator "NA RC"]
[PlyCount "133"]
[EventDate "2022.06.24"]
[EventType "tourn"]
[EventCountry "NET"]
[SourceTitle "playchess.com"]
[Source "ChessBase"]
[SourceQuality "1"]
[TimeControl "180+2"]

1. e4 {[%emt 0:00:02]} c5 {[%emt 0:00:04]} 2. Nf3 {[%emt 0:00:02]} Nc6 {[%emt 0:00:02]} 3. d4 {[%emt 0:00:01]} cxd4 {[%emt 0:00:01]} 4. Nxd4 {[%emt 0:00:00]} Nf6 {[%emt 0:00:02]} 5. Nc3 {[%emt 0:00:02]} d6 {[%emt 0:00:02]} 6. Be3 {[%emt 0:00:05]} e5 {[%emt 0:00:02]} 7. Nb3 {[%emt 0:00:02]} Be7 {[%emt 0:00:01]} 8. f3 {[%emt 0:00:04]} O-O {[%emt 0:00:02]} 9. Qd2 {[%emt 0:00:03]} Be6 {[%emt 0:00:03]} 10. Be2 {[%emt 0:00:03]} Rc8 {[%emt 0:00:26]} 11. g4 {[%emt 0:00:10]} a6 {[%emt 0:00:11]} 12. O-O-O {[%emt 0:00:06]} Na5 {[%emt 0:00:02]} 13. Kb1 {[%emt 0:00:16]} Nc4 {[%emt 0:00:02]} 14. Bxc4 {[%emt 0:00:04]} Bxc4 {[%emt 0:00:02]} 15. h4 {[%emt 0:00:02]} b5 {[%emt 0:00:04]} 16. h5 {[%emt 0:00:03]} Qc7 {[%emt 0:00:17]} 17. g5 {[%emt 0:00:06]} Nd7 {[%emt 0:00:05]} 18. g6 {[%emt 0:00:16]} Rfd8 {[%emt 0:00:13]} 19. gxh7+ {[%emt 0:00:24]} Kh8 {[%emt 0:00:02]} 20. Rdg1 {[%emt 0:00:12]} Bf8 {[%emt 0:00:06]} 21. h6 {[%emt 0:00:03]} g6 {[%emt 0:00:03]} 22. f4 {[%emt 0:00:13]} exf4 {[%emt 0:00:09]} 23. Bd4+ {[%emt 0:00:08]} Ne5 {[%emt 0:00:05]} 24. Qxf4 {[%emt 0:00:05]} Kxh7 {[%emt 0:00:07]} 25. Nd2 {[%emt 0:00:23]} Be6 {[%emt 0:00:07]} 26. Nf3 {[%emt 0:00:09]} Nxf3 {[%emt 0:00:22]} 27. Qxf3 {[%emt 0:00:05]} Be7 {[%emt 0:00:05]} 28. Rh2 {[%emt 0:00:17]} b4 {[%emt 0:00:03]} 29. Nd5 {[%emt 0:00:10]} Qb7 {[%emt 0:00:14]} 30. Nf6+ {[%emt 0:00:03]} Bxf6 {[%emt 0:00:08]} 31. Qxf6 {[%emt 0:00:02]} Rg8 {[%emt 0:00:30]} 32. Rhg2 {[%emt 0:00:06]} Qxe4 {[%emt 0:00:10]} 33. b3 {[%emt 0:00:04]} Qf5 {[%emt 0:00:04]} 34. Qxf5 {[%emt 0:00:03]} Bxf5 {[%emt 0:00:03]} 35. Bb2 {[%emt 0:00:04]} Rge8 {[%emt 0:00:02]} 36. Rd1 {[%emt 0:00:04]} Rcd8 {[%emt 0:00:04]} 37. Rgd2 {[%emt 0:00:02]} Re6 {[%emt 0:00:03]} 38. a3 {[%emt 0:00:03]} bxa3 {[%emt 0:00:03]} 39. Bxa3 {[%emt 0:00:02]} Rc8 {[%emt 0:00:05]} 40. Bxd6 {[%emt 0:00:06]} Kxh6 {[%emt 0:00:03]} 41. Bf4+ {[%emt 0:00:02]} Kg7 {[%emt 0:00:02]} 42. Kb2 {[%emt 0:00:04]} Rec6 {[%emt 0:00:02]} 43. Rc1 {[%emt 0:00:03]} Kf6 {[%emt 0:00:03]} 44. c3 {[%emt 0:00:01]} Be6 {[%emt 0:00:02]} 45. Rd6 {[%emt 0:00:03]} Kg7 {[%emt 0:00:02]} 46. Rxc6 {[%emt 0:00:02]} Rxc6 {[%emt 0:00:02]} 47. Rd1 {[%emt 0:00:03]} Rb6 {[%emt 0:00:01]} 48. Rd6 {[%emt 0:00:00]} Rxd6 {[%emt 0:00:02]} 49. Bxd6 {[%emt 0:00:01]} g5 {[%emt 0:00:02]} 50. Kc2 {[%emt 0:00:02]} f5 {[%emt 0:00:01]} 51. b4 {[%emt 0:00:05]} g4 {[%emt 0:00:02]} 52. Kd3 {[%emt 0:00:01]} Kf6 {[%emt 0:00:02]} 53. c4 {[%emt 0:00:01]} Kg5 {[%emt 0:00:02]} 54. b5 {[%emt 0:00:02]} axb5 {[%emt 0:00:02]} 55. cxb5 {[%emt 0:00:01]} Bd5 {[%emt 0:00:01]} 56. Ke3 {[%emt 0:00:02]} Bb7 {[%emt 0:00:04]} 57. Bf4+ {[%emt 0:00:01]} Kf6 {[%emt 0:00:02]} 58. Kd4 {[%emt 0:00:02]} Ke6 {[%emt 0:00:01]} 59. Kc5 {[%emt 0:00:03]} Kd7 {[%emt 0:00:02]} 60. Kb6 {[%emt 0:00:03]} Be4 {[%emt 0:00:02]} 61. Kc5 {[%emt 0:00:02]} Kc8 {[%emt 0:00:02]} 62. Kd6 {[%emt 0:00:04]} Kb7 {[%emt 0:00:02]} 63. Kc5 {[%emt 0:00:01]} Bf3 {[%emt 0:00:03]} 64. Be5 {[%emt 0:00:02]} Be4 {[%emt 0:00:01]} 65. Bf4 {[%emt 0:00:01]} Bf3 {[%emt 0:00:02]} 66. Be5 {[%emt 0:00:01]} Be4 {[%emt 0:00:02]} 67. Bf4 {[%emt 0:00:02]} 1/2-1/2

[Event "Queens Festival Final-C 2022"]
[Site "Tornelo"]
[Date "2022.06.25"]
[Round "7.4"]
[White "Lampard, Alice"]
[Black "Orbe Vivero, Veronica Priscila"]
[Result "0-1"]
[ECO "E92"]
[WhiteElo "1756"]
[BlackElo "1636"]
[Annotator "NA RC"]
[PlyCount "80"]
[EventDate "2022.06.24"]
[EventType "tourn"]
[EventCountry "NET"]
[SourceTitle "playchess.com"]
[Source "ChessBase"]
[SourceQuality "1"]
[TimeControl "180+2"]

1. d4 {[%emt 0:00:02]} Nf6 {[%emt 0:00:07]} 2. c4 {[%emt 0:00:02]} g6 {[%emt 0:00:02]} 3. Nc3 {[%emt 0:00:03]} Bg7 {[%emt 0:00:01]} 4. e4 {[%emt 0:00:01]} d6 {[%emt 0:00:02]} 5. Nf3 {[%emt 0:00:02]} O-O {[%emt 0:00:02]} 6. Be2 {[%emt 0:00:02]} e5 {[%emt 0:00:02]} 7. d5 {[%emt 0:00:04]} a5 {[%emt 0:00:12]} 8. Qc2 {[%emt 0:00:10]} Na6 {[%emt 0:00:03]} 9. a3 {[%emt 0:00:02]} Nc5 {[%emt 0:00:11]} 10. Be3 {[%emt 0:00:07]} Nfd7 {[%emt 0:00:08]} 11. O-O {[%emt 0:00:08]} h6 {[%emt 0:00:04]} 12. b4 {[%emt 0:00:14]} axb4 {[%emt 0:00:04]} 13. axb4 {[%emt 0:00:00]} Rxa1 {[%emt 0:00:02]} 14. Rxa1 {[%emt 0:00:01]} Na6 {[%emt 0:00:02]} 15. Qb3 {[%emt 0:00:06]} f5 {[%emt 0:00:05]} 16. exf5 {[%emt 0:00:18]} gxf5 {[%emt 0:00:02]} 17. Ne1 {[%emt 0:00:20]} f4 {[%emt 0:00:08]} 18. Bd2 {[%emt 0:00:03]} Nf6 {[%emt 0:00:02]} 19. c5 {[%emt 0:00:04]} dxc5 {[%emt 0:00:15]} 20. Bxa6 {[%emt 0:00:08]} bxa6 {[%emt 0:00:05]} 21. bxc5 {[%emt 0:00:08]} Kh8 {[%emt 0:00:04]} 22. Nf3 {[%emt 0:00:08]} e4 {[%emt 0:00:27]} 23. Ne5 {[%emt 0:00:09]} Qe8 {[%emt 0:00:20]} 24. Nc4 {[%emt 0:00:23]} f3 {[%emt 0:00:10]} 25. g3 {[%emt 0:00:14]} Qh5 {[%emt 0:00:04]} 26. Ne3 {[%emt 0:00:05]} Qh3 {[%emt 0:00:10]} 27. Nxe4 {[%emt 0:00:25]} Nxe4 {[%emt 0:00:37]} 28. Qd1 {[%emt 0:00:06]} Nxd2 {[%emt 0:00:11]} 29. Qxd2 {[%emt 0:00:10]} Bxa1 {[%emt 0:00:02]} 30. Qc1 {[%emt 0:00:07]} Bd4 {[%emt 0:00:05]} 31. Qf1 {[%emt 0:00:02]} Bxe3 {[%emt 0:00:04]} 32. Qxh3 {[%emt 0:00:01]} Bxh3 {[%emt 0:00:03]} 33. d6 {[%emt 0:00:02]} cxd6 {[%emt 0:00:02]} 34. cxd6 {[%emt 0:00:01]} Bc5 {[%emt 0:00:03]} 35. d7 {[%emt 0:00:02]} Bxd7 {[%emt 0:00:02]} 36. h4 {[%emt 0:00:01]} Bh3 {[%emt 0:00:02]} 37. Kh2 {[%emt 0:00:01]} Bg2 {[%emt 0:00:04]} 38. h5 {[%emt 0:00:02]} Re8 {[%emt 0:00:02]} 39. g4 {[%emt 0:00:01]} Bd6+ {[%emt 0:00:03]} 40. Kg1 {[%emt 0:00:04]} Re1# {[%emt 0:00:02]} 0-1

[Event "Queens Festival Final-C 2022"]
[Site "Tornelo"]
[Date "2022.06.25"]
[Round "7.5"]
[White "Sanudula, K M Dahamdi"]
[Black "Pragnya H G"]
[Result "1/2-1/2"]
[ECO "A47"]
[WhiteElo "1710"]
[BlackElo "1605"]
[Annotator "NA RC"]
[PlyCount "164"]
[EventDate "2022.06.24"]
[EventType "tourn"]
[EventCountry "NET"]
[SourceTitle "playchess.com"]
[Source "ChessBase"]
[SourceQuality "1"]
[TimeControl "180+2"]

1. d4 {[%emt 0:00:02]} Nf6 {[%emt 0:00:05]} 2. Bf4 {[%emt 0:00:02]} b6 {[%emt 0:00:05]} 3. Nf3 {[%emt 0:00:03]} Bb7 {[%emt 0:00:01]} 4. e3 {[%emt 0:00:01]} g6 {[%emt 0:00:06]} 5. Bd3 {[%emt 0:00:02]} Bg7 {[%emt 0:00:01]} 6. Nbd2 {[%emt 0:00:02]} O-O {[%emt 0:00:01]} 7. c3 {[%emt 0:00:03]} d6 {[%emt 0:00:01]} 8. e4 {[%emt 0:00:04]} Nbd7 {[%emt 0:00:05]} 9. Qe2 {[%emt 0:00:03]} c5 {[%emt 0:00:07]} 10. O-O {[%emt 0:00:05]} Nh5 {[%emt 0:00:08]} 11. Bg5 {[%emt 0:00:10]} h6 {[%emt 0:00:04]} 12. Bh4 {[%emt 0:00:01]} Nf4 {[%emt 0:00:08]} 13. Qe3 {[%emt 0:00:08]} Nxd3 {[%emt 0:00:08]} 14. Qxd3 {[%emt 0:00:01]} g5 {[%emt 0:00:02]} 15. Bg3 {[%emt 0:00:02]} e5 {[%emt 0:00:02]} 16. Rad1 {[%emt 0:00:29]} Qe7 {[%emt 0:00:29]} 17. Rfe1 {[%emt 0:00:18]} Rfe8 {[%emt 0:00:17]} 18. Nc4 {[%emt 0:00:09]} Ba6 {[%emt 0:00:08]} 19. b3 {[%emt 0:00:07]} cxd4 {[%emt 0:00:11]} 20. cxd4 {[%emt 0:00:02]} exd4 {[%emt 0:00:04]} 21. Nxd4 {[%emt 0:00:03]} d5 {[%emt 0:00:05]} 22. Nf5 {[%emt 0:00:08]} Qc5 {[%emt 0:00:17]} 23. exd5 {[%emt 0:00:11]} Nf6 {[%emt 0:00:14]} 24. d6 {[%emt 0:00:16]} Rxe1+ {[%emt 0:00:06]} 25. Rxe1 {[%emt 0:00:03]} Rd8 {[%emt 0:00:07]} 26. Ne7+ {[%emt 0:00:14]} Kh8 {[%emt 0:00:03]} 27. Qf5 {[%emt 0:00:03]} Bxc4 {[%emt 0:00:08]} 28. Qxc5 {[%emt 0:00:05]} bxc5 {[%emt 0:00:01]} 29. bxc4 {[%emt 0:00:01]} Nh5 {[%emt 0:00:03]} 30. Nf5 {[%emt 0:00:13]} Nxg3 {[%emt 0:00:09]} 31. hxg3 {[%emt 0:00:01]} Bd4 {[%emt 0:00:02]} 32. Rd1 {[%emt 0:00:04]} Be5 {[%emt 0:00:02]} 33. Nxh6 {[%emt 0:00:04]} Kg7 {[%emt 0:00:02]} 34. Nf5+ {[%emt 0:00:01]} Kf6 {[%emt 0:00:01]} 35. g4 {[%emt 0:00:01]} Ke6 {[%emt 0:00:03]} 36. Kf1 {[%emt 0:00:03]} Bxd6 {[%emt 0:00:01]} 37. Re1+ {[%emt 0:00:06]} Kf6 {[%emt 0:00:09]} 38. Rd1 {[%emt 0:00:04]} Ke6 {[%emt 0:00:02]} 39. Ke2 {[%emt 0:00:03]} Bc7 {[%emt 0:00:05]} 40. Rxd8 {[%emt 0:00:03]} Bxd8 {[%emt 0:00:01]} 41. Kd3 {[%emt 0:00:01]} Bc7 {[%emt 0:00:02]} 42. Ke4 {[%emt 0:00:01]} Be5 {[%emt 0:00:01]} 43. Ne3 {[%emt 0:00:04]} Bd4 {[%emt 0:00:01]} 44. g3 {[%emt 0:00:11]} f6 {[%emt 0:00:01]} 45. f4 {[%emt 0:00:03]} a5 {[%emt 0:00:06]} 46. Nd5 {[%emt 0:00:05]} Bf2 {[%emt 0:00:06]} 47. Kf3 {[%emt 0:00:04]} Bd4 {[%emt 0:00:02]} 48. Nc7+ {[%emt 0:00:04]} Kd7 {[%emt 0:00:04]} 49. Nb5 {[%emt 0:00:05]} Bg1 {[%emt 0:00:02]} 50. Ke4 {[%emt 0:00:07]} Bf2 {[%emt 0:00:02]} 51. fxg5 {[%emt 0:00:03]} fxg5 {[%emt 0:00:01]} 52. Kf5 {[%emt 0:00:01]} Be3 {[%emt 0:00:02]} 53. Nc3 {[%emt 0:00:03]} Kd6 {[%emt 0:00:02]} 54. Ne4+ {[%emt 0:00:02]} Kc6 {[%emt 0:00:03]} 55. Nxg5 {[%emt 0:00:01]} a4 {[%emt 0:00:01]} 56. Ne4 {[%emt 0:00:01]} a3 {[%emt 0:00:01]} 57. g5 {[%emt 0:00:03]} Kb6 {[%emt 0:00:02]} 58. g6 {[%emt 0:00:01]} Bh6 {[%emt 0:00:01]} 59. Kf6 {[%emt 0:00:01]} Ka5 {[%emt 0:00:02]} 60. Nc3 {[%emt 0:00:05]} Kb4 {[%emt 0:00:01]} 61. Ne4 {[%emt 0:00:06]} Kxc4 {[%emt 0:00:02]} 62. g7 {[%emt 0:00:01]} Bxg7+ {[%emt 0:00:02]} 63. Kxg7 {[%emt 0:00:00]} Kd4 {[%emt 0:00:01]} 64. Nxc5 {[%emt 0:00:05]} Kxc5 {[%emt 0:00:01]} 65. Kf6 {[%emt 0:00:00]} Kc4 {[%emt 0:00:00]} 66. g4 {[%emt 0:00:01]} Kc3 {[%emt 0:00:01]} 67. g5 {[%emt 0:00:00]} Kb2 {[%emt 0:00:01]} 68. g6 {[%emt 0:00:00]} Kxa2 {[%emt 0:00:01]} 69. g7 {[%emt 0:00:00]} Kb1 {[%emt 0:00:01]} 70. g8=Q {[%emt 0:00:03]} a2 {[%emt 0:00:01]} 71. Qg1+ {[%emt 0:00:01]} Kb2 {[%emt 0:00:01]} 72. Qf2+ {[%emt 0:00:01]} Kb1 {[%emt 0:00:00]} 73. Qe1+ {[%emt 0:00:01]} Kb2 {[%emt 0:00:01]} 74. Qd2+ {[%emt 0:00:02]} Kb1 {[%emt 0:00:00]} 75. Qd3+ {[%emt 0:00:01]} Kb2 {[%emt 0:00:02]} 76. Qb5+ {[%emt 0:00:02]} Ka1 {[%emt 0:00:02]} 77. Qa4 {[%emt 0:00:04]} Kb2 {[%emt 0:00:01]} 78. Qb4+ {[%emt 0:00:01]} Ka1 {[%emt 0:00:00]} 79. Qc3+ {[%emt 0:00:02]} Kb1 {[%emt 0:00:02]} 80. Kf5 {[%emt 0:00:01]} a1=Q {[%emt 0:00:02]} 81. Qb3+ {[%emt 0:00:01]} Qb2 {[%emt 0:00:02]} 82. Qxb2+ {[%emt 0:00:01]} Kxb2 {[%emt 0:00:01]} 1/2-1/2

[Event "Queens Festival Final-C 2022"]
[Site "Tornelo"]
[Date "2022.06.25"]
[Round "8.1"]
[White "Castillo Beitia, Ashley Alexandra"]
[Black "Pragnya H G"]
[Result "1-0"]
[ECO "E61"]
[WhiteElo "1620"]
[BlackElo "1605"]
[Annotator "NA RC"]
[PlyCount "63"]
[EventDate "2022.06.24"]
[EventType "tourn"]
[EventCountry "NET"]
[SourceTitle "playchess.com"]
[Source "ChessBase"]
[SourceQuality "1"]
[TimeControl "180+2"]

1. d4 {[%emt 0:00:02]} Nf6 {[%emt 0:00:05]} 2. c4 {[%emt 0:00:02]} b6 {[%emt 0:00:01]} 3. Nc3 {[%emt 0:00:02]} Bb7 {[%emt 0:00:01]} 4. Bf4 {[%emt 0:00:05]} g6 {[%emt 0:00:04]} 5. e3 {[%emt 0:00:01]} Bg7 {[%emt 0:00:01]} 6. Nf3 {[%emt 0:00:02]} O-O {[%emt 0:00:02]} 7. Be2 {[%emt 0:00:02]} d6 {[%emt 0:00:01]} 8. h3 {[%emt 0:00:02]} Nbd7 {[%emt 0:00:01]} 9. O-O {[%emt 0:00:02]} Re8 {[%emt 0:00:04]} 10. Qc2 {[%emt 0:00:03]} e5 {[%emt 0:00:02]} 11. dxe5 {[%emt 0:00:01]} dxe5 {[%emt 0:00:01]} 12. Bh2 {[%emt 0:00:02]} Qe7 {[%emt 0:00:01]} 13. Rfd1 {[%emt 0:00:03]} Rad8 {[%emt 0:00:22]} 14. Rd2 {[%emt 0:00:06]} a6 {[%emt 0:00:11]} 15. Rad1 {[%emt 0:00:03]} e4 {[%emt 0:00:02]} 16. Nd4 {[%emt 0:00:08]} c5 {[%emt 0:00:02]} 17. Nb3 {[%emt 0:00:02]} Nh5 {[%emt 0:00:13]} 18. Bxh5 {[%emt 0:00:04]} gxh5 {[%emt 0:00:01]} 19. Bc7 {[%emt 0:00:02]} Be5 {[%emt 0:00:13]} 20. Bxd8 {[%emt 0:00:04]} Rxd8 {[%emt 0:00:01]} 21. Nd5 {[%emt 0:00:05]} Qe6 {[%emt 0:00:07]} 22. Nxb6 {[%emt 0:00:11]} Qxb6 {[%emt 0:00:12]} 23. Rxd7 {[%emt 0:00:04]} Rxd7 {[%emt 0:00:01]} 24. Rxd7 {[%emt 0:00:03]} Bc6 {[%emt 0:00:01]} 25. Rd2 {[%emt 0:00:09]} Ba4 {[%emt 0:00:14]} 26. Rd5 {[%emt 0:00:05]} Qe6 {[%emt 0:00:04]} 27. Qd2 {[%emt 0:00:14]} Bxb3 {[%emt 0:00:06]} 28. axb3 {[%emt 0:00:03]} Bc7 {[%emt 0:00:01]} 29. Rxc5 {[%emt 0:00:03]} Bd6 {[%emt 0:00:05]} 30. Rd5 {[%emt 0:00:05]} Qf6 {[%emt 0:00:03]} 31. Rxd6 {[%emt 0:00:03]} Qe7 {[%emt 0:00:00]} 32. Rd8+ {[%emt 0:00:02]} 1-0